Workbook

Sheet AER Final decision changes
A1: Cells | B1: Description of changes
A2: CPI' - Row 4 | B2: updated CPI forecast
A3: PTRM output' | B3: replaced values with values from draft decision public lighting PTRM

Sheet Purpose
A1: The purpose of this file is to breakdown the output from the PTRM for the Public Lighting Pricing Model

Sheet Allocations
A1: Ergon Energy
A3: Table 1: Proportions used allocate the opex and capex between Rate 1 (Conventional and LED) and Rate 2A LED
B4: 2025-30 regulatory period
A5: Tariff | B5: 2025-26 | C5: 2026-27 | D5: 2027-28 | E5: 2028-29 | F5: 2029-30
A6: Rate 1 | B6: 0 | C6: 0 | D6: 0 | E6: 0 | F6: 0
A7: Rate 2A | B7: 0 | C7: 0.25 | D7: 0.25 | E7: 0.25 | F7: 0.25

Sheet CPI
A1: Table 1: Forecast inflation
B2: 2025-30 regulatory period
B3: 2025-26 | C3: 2026-27 | D3: 2027-28 | E3: 2028-29 | F3: 2029-30
A4: CPI | B4: 0.032 | C4: 0.027 | D4: 0.02633333333 | E4: 0.02566666667 | F4: 0.025
B6: Source: Ergon 2025-30 Public Lighting PTRM | H6: cell 377 of PTRM input

Sheet PTRM output
A1: Table 1a: Building Blocks: unsmoothed
A2: Revenue ($ Nominal) | B2: 2025-26 | C2: 2026-27 | D2: 2027-28 | E2: 2028-29 | F2: 2029-30
A3: Return on | B3: 7.976354971 | C3: 8.631478097 | D3: 9.314491198 | E3: 10.04600738 | F3: 10.77652677
A4: Depreciation | B4: 8.214321269 | C4: 9.202755373 | D4: 10.27048467 | E4: 11.42204818 | F4: 12.66303908
A5: Opex | B5: 11.04559917 | C5: 10.97683333 | D5: 10.89749739 | E5: 10.84170715 | F5: 10.80163538
A6: Tax
A7: Smoothed Revenue | B7: =SUM(B3:B6) -> 27.23627541 | C7: =SUM(C3:C6) -> 28.8110668 | D7: 30.48247326 | E7: 32.30976271 | F7: 34.24120123
A9: Table 1b: Building Blocks: Adjusted for Smoothing | H9: Table 2: Capex use to split revenue (return on) between Conv and LED | P9: Table 4: Allocation of depreciation between Conv and LED | W9: Table 5: Real opex from PTRM Used to allocate the $ Nominal opex between CONV and LED
A10: Revenue ($ Nominal) | B10: 2025-26 | C10: 2026-27 | D10: 2027-28 | E10: 2028-29 | F10: 2029-30 | H10: Value of Asset Base | I10: 2025-26 | J10: 2026-27 | K10: 2027-28 | L10: 2028-29 | M10: 2029-30 | P10: Depreciation | Q10: 2025-26 | R10: 2026-27 | S10: 2027-28 | T10: 2028-29 | U10: 2029-30 | W10: Opex ($ Real) | X10: 2025-26 | Y10: 2026-27 | Z10: 2027-28 | AA10: 2028-29 | AB10: 2029-30
A11: Return on | B11: =B3/B$7*B$23 -> 7.976354971 | C11: =C3/C$7*C$23 -> 8.637016677 | D11: 9.324747223 | E11: 10.04333767 | F11: 10.76064659 | H11: Conventional | I11: 90.71490209 | J11: =I11-Q11 -> 82.22300393 | K11: =J11-R11 -> 73.73110578 | L11: 65.23920762 | M11: 56.74730946 | P11: Conventional | Q11: 8.491898157 | R11: 8.491898157 | S11: 8.491898157 | T11: 8.491898157 | U11: 8.491898157 | W11: Conventional | X11: 2.017364381 | Y11: 1.404673355 | Z11: 0.8697602767 | AA11: 0.4053959038 | AB11: 0
A12: Depreciation | B12: =B4/B$7*B$23 -> 8.214321269 | C12: 9.208660525 | D12: 10.28179332 | E12: 11.41901279 | F12: 12.64437895 | H12: LED | I12: 40.25014244 | J12: =I12+17.63-Q12 -> 54.90766141 | K12: =J12+17.86-R12 -> 68.89922456 | L12: =K12+18.07-S12 -> 82.19326981 | M12: =L12+18.3-T12 -> 94.79869986 | P12: LED | Q12: 2.972481028 | R12: 3.868436853 | S12: 4.775954753 | T12: 5.694569945 | U12: 6.62539993 | W12: LED | X12: 8.670644482 | Y12: 8.930242622 | Z12: 9.113630241 | AA12: 9.259128621 | AB12: 9.369440988
A13: Opex | B13: 11.04559917 | C13: 10.98387686 | D13: 10.90949644 | E13: 10.83882599 | F13: 10.7857182 | H13: Total | I13: =I11+I12 -> 130.9650445 | J13: =J11+J12 -> 137.1306653 | K13: 142.6303303 | L13: 147.4324774 | M13: 151.5460093 | P13: Total | Q13: =SUM(Q11:Q12) -> 11.46437919 | R13: =SUM(R11:R12) -> 12.36033501 | S13: 13.26785291 | T13: 14.1864681 | U13: 15.11729809 | W13: Total | X13: =SUM(X11:X12) -> 10.68800886 | Y13: =SUM(Y11:Y12) -> 10.33491598 | Z13: 9.983390517 | AA13: 9.664524525 | AB13: 9.369440988
A14: Tax | B14: 0 | C14: 0 | D14: 0 | E14: 0 | F14: 0
A15: Smoothed Revenue | B15: =SUM(B11:B14) -> 27.23627541 | C15: =SUM(C11:C14) -> 28.82955406 | D15: =SUM(D11:D14) -> 30.51603698 | E15: =SUM(E11:E14) -> 32.30117645 | F15: =SUM(F11:F14) -> 34.19074374 | H15: Source: Ergon 2025-30 Public Lighting PTRM | W15: Source: Ergon 2025-30 Public Lighting PTRM
A17: Note: | H17: Table 3: Split of Revenue (Return on) between Conv and LED | W17: Table 6: Split of $ nominal opex between CONV and LED
A18: Revenue streams are upscaled to align with the smooth revenue from the PTRM | H18: Return on ($ Nominal) | I18: 2025-26 | J18: 2026-27 | K18: 2027-28 | L18: 2028-29 | M18: 2029-30 | P18: Depreciation | Q18: 2025-26 | R18: 2026-27 | S18: 2027-28 | T18: 2028-29 | U18: 2029-30 | W18: Opex ($ Nominal) | X18: 2025-26 | Y18: 2026-27 | Z18: 2027-28 | AA18: 2028-29 | AB18: 2029-30
H19: Conventional | I19: =B11*(I11/I13) -> 5.524941887 | J19: =C11*(J11/J13) -> 5.178720999 | K19: 4.82032063 | L19: 4.444199832 | M19: 4.029388467 | P19: Conventional | Q19: =B4*Q11/Q13 -> 6.084514348 | R19: =C4*R11/R13 -> 6.322552044 | S19: 6.573475784 | T19: 6.837140096 | U19: 7.113257779 | W19: Conventional | X19: =B$13*(X11/X$13) -> 2.084859641 | Y19: =C$13*(Y11/Y$13) -> 1.492877077 | Z19: 0.9504433011 | AA19: 0.4546540957 | AB19: =F$13*(AB11/AB$13) -> 0
A20: Source: Ergon 2025-30 Public Lighting PTRM | H20: LED | I20: =B11*(I12/I13) -> 2.451413084 | J20: =C11*(J12/J13) -> 3.458295678 | K20: 4.504426593 | L20: 5.599137838 | M20: 6.731258125 | P20: LED | Q20: =B4*Q12/Q13 -> 2.12980692 | R20: =C4*R12/R13 -> 2.880203328 | S20: 3.697008882 | T20: 4.584908083 | U20: 5.549781299 | W20: LED | X20: =B$13*(X12/X$13) -> 8.960739526 | Y20: =C$13*(Y12/Y$13) -> 9.490999784 | Z20: 9.959053135 | AA20: 10.38417189 | AB20: 10.7857182
H21: Total | I21: =SUM(I19:I20) -> 7.976354971 | J21: =SUM(J19:J20) -> 8.637016677 | K21: 9.324747223 | L21: 10.04333767 | M21: 10.76064659 | P21: Total | Q21: =SUM(Q19:Q20) -> 8.214321269 | R21: =SUM(R19:R20) -> 9.202755373 | S21: 10.27048467 | T21: 11.42204818 | U21: 12.66303908 | W21: Total | X21: =SUM(X19:X20) -> 11.04559917 | Y21: =SUM(Y19:Y20) -> 10.98387686 | Z21: 10.90949644 | AA21: 10.83882599 | AB21: 10.7857182
A23: smoothed | B23: 27.23627541 | C23: 28.82955406 | D23: 30.51603698 | E23: 32.30117645 | F23: 34.19074374 | W23: Note: uses the Real opex values in Table 5 to allocate the Nominal opex values in Table 1 between LED and CONV

Sheet Pricing Input
A1: Ergon Energy
A2: Table 1: Revenue (Return on, return of, opex) by light type | I2: Table 2: Unit cost of residual value of legacy CONV infrastructure
A3: Light type | B3: Revenue | C3: 2025-26 | D3: 2026-27 | E3: 2027-28 | F3: 2028-29 | G3: 2029-30 | J3: 2024-25
A4: CONV | B4: Opex (inc Tax) | C4: ='PTRM output'!X19*1000000 -> 2084859.641 | D4: ='PTRM output'!Y19*1000000 -> 1492877.077 | E4: ='PTRM output'!Z19*1000000 -> 950443.3011 | F4: ='PTRM output'!AA19*1000000 -> 454654.0957 | G4: ='PTRM output'!AB19*1000000 -> 0 | I4: Volume of Conventional - Rate 1 lights | J4: ='[1]ERG - Yearly volume scenarios'!$J$5+'[1]ERG - Yearly volume scenarios'!$J$7 -> 35359 | K4: Source: file "Ergon Energy - 11.01 - ACS Public Lighting Capex & Opex Forecasting Model 2025-30 - November"
A5: CONV | B5: Capital (RoA & Depn) - R1 | C5: =('PTRM output'!I19+'PTRM output'!Q19)*1000000 -> 11609456.24 | D5: =('PTRM output'!J19+'PTRM output'!R19)*1000000 -> 11501273.04 | E5: =('PTRM output'!K19+'PTRM output'!S19)*1000000 -> 11393796.41 | F5: =('PTRM output'!L19+'PTRM output'!T19)*1000000 -> 11281339.93 | G5: =('PTRM output'!M19+'PTRM output'!U19)*1000000 -> 11142646.25 | I5: Total capital Rate 1 CONV | J5: =C5 -> 11609456.24
A6: CONV | B6: Capital (RoA & Depn) - R2 | C6: 0 | D6: 0 | E6: 0 | F6: 0 | G6: 0 | I6: Derived unit cost | J6: =J5/J4 -> 328.3310115
A7: LED | B7: Opex (inc Tax) | C7: ='PTRM output'!X20*1000000 -> 8960739.526 | D7: =('PTRM output'!Y20)*1000000 -> 9490999.784 | E7: =('PTRM output'!Z20)*1000000 -> 9959053.135 | F7: =('PTRM output'!AA20)*1000000 -> 10384171.89 | G7: =('PTRM output'!AB20)*1000000 -> 10785718.2 | I7: Proportion for pole & cabling | J7: 0.8
A8: LED | B8: Capital (RoA & Depn) - R1 | C8: =(('PTRM output'!Q20+'PTRM output'!I20)*(1-Allocations!B7))*1000000 -> 4581220.005 | D8: =(('PTRM output'!R20+'PTRM output'!J20)*(1-Allocations!C7))*1000000 -> 4753874.255 | E8: =(('PTRM output'!S20+'PTRM output'!K20)*(1-Allocations!D7))*1000000 -> 6151076.606 | F8: =(('PTRM output'!T20+'PTRM output'!L20)*(1-Allocations!E7))*1000000 -> 7638034.441 | G8: =(('PTRM output'!U20+'PTRM output'!M20)*(1-Allocations!F7))*1000000 -> 9210779.568 | I8: Unit cos for pole & cabling | J8: =J6*J7 -> 262.6648092
A9: LED | B9: Capital (RoA & Depn) - R2A | C9: =(('PTRM output'!Q20+'PTRM output'!I20)*Allocations!B7)*1000000 -> 0 | D9: =(('PTRM output'!R20+'PTRM output'!J20)*Allocations!C7)*1000000 -> 1584624.752 | E9: =(('PTRM output'!S20+'PTRM output'!K20)*Allocations!D7)*1000000 -> 2050358.869 | F9: =(('PTRM output'!T20+'PTRM output'!L20)*Allocations!E7)*1000000 -> 2546011.48 | G9: =(('PTRM output'!U20+'PTRM output'!M20)*Allocations!F7)*1000000 -> 3070259.856
B10: Total | C10: =SUM(C4:C9) -> 27236275.41 | D10: =SUM(D4:D9) -> 28823648.91 | E10: =SUM(E4:E9) -> 30504728.33 | F10: =SUM(F4:F9) -> 32304211.84 | G10: =SUM(G4:G9) -> 34209403.87 | I10: Note
I11: This area is used to transfer the legacy residual value of legacy conventional lights to the LED asset base once the asset is converted
I13: Table 3: Estimated residual value from CONV to LED
I14: Residual value to LED | J14: 2025-26 | K14: 2026-27 | L14: 2027-28 | M14: 2028-29 | N14: 2029-30
I15: Number of Rate 1 lights CONV converted to LED | J15: 6039 | K15: 12261 | L15: 9892 | M15: 9325 | N15: 11929
I16: Nominal unit cost | J16: =$J$8 -> 262.6648092 | K16: =J16*(1+CPI!C4) -> 269.756759 | L16: =K16*(1+CPI!D4) -> 276.8603537 | M16: =L16*(1+CPI!E4) -> 283.9664361 | N16: =M16*(1+CPI!F4) -> 291.065597
I17: Value of CONV pole & cabling | J17: =J15*J16 -> 1586232.783 | K17: =K15*K16 -> 3307487.623 | L17: =L15*L16 -> 2738702.619 | M17: =M15*M16 -> 2647987.017 | N17: =N15*N16 -> 3472121.507
I19: Table 4: Modified revenue for the Public Lighting Model
I20: Light type | J20: Tariffs | K20: Revenue | L20: 2025-26 | M20: 2026-27 | N20: 2027-28 | O20: 2028-29 | P20: 2029-30
I21: CONV | J21: Rate 1 & 2 | K21: Opex (inc Tax) | L21: =C4 -> 2084859.641 | M21: =D4 -> 1492877.077 | N21: =E4 -> 950443.3011 | O21: =F4 -> 454654.0957 | P21: =G4 -> 0
I22: CONV | J22: Rate 1 | K22: Capital (RoA & Depn) - R1 | L22: =C5-J17 -> 10023223.45 | M22: =D5-K17 -> 8193785.421 | N22: =E5-L17 -> 8655093.795 | O22: =F5-M17 -> 8633352.912 | P22: =G5-N17 -> 7670524.739
I23: CONV | J23: Rate 2 | K23: Capital (RoA & Depn) - R2 | L23: =C6 -> 0 | M23: 0 | N23: 0 | O23: 0 | P23: 0
I24: LED | J24: Rate 1, 2, 2A | K24: Opex (inc Tax) | L24: 8960739.526 | M24: 9490999.784 | N24: 9959053.135 | O24: 10384171.89 | P24: 10785718.2
I25: LED | J25: Rate 1 | K25: Capital (RoA & Depn) - R1 | L25: =C8+J17 -> 6167452.787 | M25: =D8+K17 -> 8061361.877 | N25: =E8+L17 -> 8889779.225 | O25: =F8+M17 -> 10286021.46 | P25: =G8+N17 -> 12682901.07
I26: LED | J26: Rate 2A | K26: Capital (RoA & Depn) - R2A | L26: =C9 -> 0 | M26: =D9 -> 1584624.752 | N26: =E9 -> 2050358.869 | O26: =F9 -> 2546011.48 | P26: =G9 -> 3070259.856
K27: Total | L27: =SUM(L21:L26) -> 27236275.41 | M27: =SUM(M21:M26) -> 28823648.91 | N27: =SUM(N21:N26) -> 30504728.33 | O27: =SUM(O21:O26) -> 32304211.84 | P27: =SUM(P21:P26) -> 34209403.87

Sheet Table for reg proposals
A1: Revenue
A3: Conventional | B3: 2025-26 | C3: 2026-27 | D3: 2027-28 | E3: 2028-29 | F3: 2029-30 | G3: Total
A4: Return on capital | B4: ='PTRM output'!I19 -> 5.524941887 | C4: ='PTRM output'!J19 -> 5.178720999 | D4: ='PTRM output'!K19 -> 4.82032063 | E4: ='PTRM output'!L19 -> 4.444199832 | F4: ='PTRM output'!M19 -> 4.029388467 | G4: =SUM(B4:F4) -> 23.99757181
A5: Depreciation | B5: ='PTRM output'!Q11 -> 8.491898157 | C5: ='PTRM output'!R11 -> 8.491898157 | D5: ='PTRM output'!S11 -> 8.491898157 | E5: ='PTRM output'!T11 -> 8.491898157 | F5: ='PTRM output'!U11 -> 8.491898157 | G5: =SUM(B5:F5) -> 42.45949079
A6: Opex | B6: ='PTRM output'!X19 -> 2.084859641 | C6: ='PTRM output'!Y19 -> 1.492877077 | D6: ='PTRM output'!Z19 -> 0.9504433011 | E6: ='PTRM output'!AA19 -> 0.4546540957 | F6: ='PTRM output'!AB19 -> 0 | G6: 4.982834115
A7: Total | B7: =SUM(B4:B6) -> 16.10169969 | C7: =SUM(C4:C6) -> 15.16349623 | D7: 14.26266209 | E7: 13.39075209 | F7: 12.52128662 | G7: 71.43989672
A9: LED | B9: 2025-26 | C9: 2026-27 | D9: 2027-28 | E9: 2028-29 | F9: 2029-30 | G9: Total
A10: Return on capital | B10: ='PTRM output'!I20 -> 2.451413084 | C10: ='PTRM output'!J20 -> 3.458295678 | D10: ='PTRM output'!K20 -> 4.504426593 | E10: ='PTRM output'!L20 -> 5.599137838 | F10: ='PTRM output'!M20 -> 6.731258125 | G10: =SUM(B10:F10) -> 22.74453132
A11: Depreciation | B11: ='PTRM output'!Q12 -> 2.972481028 | C11: ='PTRM output'!R12 -> 3.868436853 | D11: ='PTRM output'!S12 -> 4.775954753 | E11: ='PTRM output'!T12 -> 5.694569945 | F11: ='PTRM output'!U12 -> 6.62539993 | G11: =SUM(B11:F11) -> 23.93684251
A12: Opex | B12: ='PTRM output'!X20 -> 8.960739526 | C12: ='PTRM output'!Y20 -> 9.490999784 | D12: ='PTRM output'!Z20 -> 9.959053135 | E12: ='PTRM output'!AA20 -> 10.38417189 | F12: ='PTRM output'!AB20 -> 10.7857182 | G12: 49.58068254
A13: Total | B13: =SUM(B10:B12) -> 14.38463364 | C13: =SUM(C10:C12) -> 16.81773232 | D13: 19.23943448 | E13: 21.67787968 | F13: 24.14237625 | G13: 96.26205636
A15: CONV + LED combined | B15: 2025-26 | C15: 2026-27 | D15: 2027-28 | E15: 2028-29 | F15: 2029-30 | G15: Total
A16: Return on capital | B16: =B4+B10 -> 7.976354971 | C16: =C4+C10 -> 8.637016677 | D16: 9.324747223 | E16: 10.04333767 | F16: 10.76064659 | G16: =SUM(B16:F16) -> 46.74210313
A17: Depreciation | B17: =B5+B11 -> 11.46437919 | C17: 12.36033501 | D17: 13.26785291 | E17: 14.1864681 | F17: 15.11729809 | G17: 66.3963333
A18: Opex | B18: 11.04559917 | C18: 10.98387686 | D18: 10.90949644 | E18: 10.83882599 | F18: 10.7857182 | G18: 54.56351665
A19: Grand total | B19: =B7+B13 -> 30.48633332 | C19: =C7+C13 -> 31.98122855 | D19: =D7+D13 -> 33.50209657 | E19: =E7+E13 -> 35.06863176 | F19: =F7+F13 -> 36.66366288 | G19: =SUM(B19:F19) -> 167.7019531
A20: Reconciliation | B20: ='PTRM output'!B23-B19 -> -3.250057916 | C20: ='PTRM output'!C23-C19 -> -3.151674486 | D20: ='PTRM output'!D23-D19 -> -2.986059592 | E20: ='PTRM output'!E23-E19 -> -2.76745531 | F20: ='PTRM output'!F23-F19 -> -2.472919137
